lending/lending_fUSD_20260104
["ID","MTS","AMOUNT","RATE_DAILY","PERIOD"]
[400436148,1767551442910,-500.0,0.0001553,2]
[400436149,1767551442920,-500.0,0.00015594,2]
[400436150,1767551442930,-7191.75996326,0.00015598,2]
[400436151,1767551442940,-200.0,0.00015619,2]
[400436152,1767551442950,-200.0,0.00015619,2]
[400436153,1767551442960,-151.0,0.00015621,2]
[400436154,1767551442969,-151.0,0.00015621,2]
[400436155,1767551442979,-151.0,0.00015621,2]
[400436156,1767551442992,-151.0,0.00015621,2]
[400436157,1767551443001,-269.65,0.00015647,2]
[400436158,1767551443011,-1203.96202527,0.0001566,2]
[400436159,1767551443021,-2695.94183627,0.0001566,2]
[400436160,1767551443031,-200.0,0.00015775,2]
[400436161,1767551443040,-200.0,0.00015775,2]
[400436162,1767551443049,-151.0,0.00015807,2]
[400436163,1767551443061,-151.0,0.00015807,2]
[400436164,1767551443071,-205.95297079,0.00015843,2]
[400436165,1767551443081,-500.0,0.00015868,2]
[400436166,1767551443094,-647.18,0.0001588,2]
[400436167,1767551443104,-200.0,0.000159,2]
[400436168,1767551443114,-159.67108242,0.000159,2]
[400436169,1767551443124,-380.28936169,0.000159,2]
[400436170,1767551443135,-1000.0,0.00015921,2]
[400436171,1767551443144,-1000.0,0.00015921,2]
[400436172,1767551443154,-1000.0,0.00015921,2]
[400436173,1767551443163,-1000.0,0.00015921,2]
[400436174,1767551443173,-1000.0,0.00015921,2]
[400436175,1767551443183,-552.06846713,0.00015921,2]
[400436176,1767551443192,-1000.0,0.00015921,2]
[400436177,1767551443202,-1000.0,0.00015921,2]
[400436178,1767551443212,-1000.0,0.00015921,2]
[400436179,1767551443221,-1000.0,0.00015921,2]
[400436180,1767551443231,-1000.0,0.00015921,2]
[400436181,1767551443240,-1000.0,0.00015921,2]
[400436182,1767551443249,-1000.0,0.00015921,2]
[400436183,1767551443259,-1000.0,0.00015921,2]
[400436184,1767551443269,-1000.0,0.00015921,2]
[400436185,1767551443278,-1000.0,0.00015921,2]
[400436186,1767551443287,-402.58602431,0.00015921,2]
[400436187,1767551443300,-1000.0,0.00015921,2]
[400436188,1767551443310,-479.33901688,0.00015921,2]
[400436189,1767551443320,-277.79177632,0.00015921,2]
[400436190,1767551443329,-224.11556255,0.00015921,2]
[400436191,1767551443339,-1000.0,0.00015921,2]
[400436192,1767551443348,-1000.0,0.00015921,2]
[400436193,1767551443357,-310.57231223,0.00015921,2]
[400436194,1767551443367,-1131.92218996,0.00015921,2]
[400436195,1767551443376,-502.24390153,0.00015921,2]
[400436196,1767551443386,-1000.0,0.00015921,2]
[400436197,1767551443395,-1000.0,0.00015921,2]
[400436198,1767551443405,-1000.0,0.00015921,2]
[400436199,1767551443415,-502.37793469,0.00015921,2]
[400436201,1767551443425,-1006.76212888,0.00015921,2]
[400436202,1767551443435,-269.65,0.00015921,2]
[400436203,1767551443444,-2084.35,0.00015927,2]
[400436204,1767551443454,-200.0,0.00015933,2]
[400436205,1767551443463,-6438.07376543,0.00015938,2]
[400436206,1767551443473,-162.71793463,0.00015973,2]
[400436207,1767551443482,-500.0,0.00015973,2]
[400436209,1767551443492,-500.0,0.00015973,2]
[400436211,1767551443501,-500.0,0.00015973,2]
[400436212,1767551443510,-162.60748848,0.00015973,2]
[400436213,1767551443520,-500.0,0.00015973,2]
[400436214,1767551443529,-500.0,0.00015973,2]
[400436215,1767551443539,-500.0,0.00015973,2]
[400436216,1767551443548,-500.0,0.00015973,2]
[400436217,1767551443558,-500.0,0.00015973,2]
[400436218,1767551443567,-500.0,0.00015973,2]
[400436219,1767551443577,-500.0,0.00015973,2]
[400436220,1767551443586,-500.0,0.00015973,2]
[400436221,1767551443596,-500.0,0.00015973,2]
[400436222,1767551443606,-500.0,0.00015973,2]
[400436223,1767551443615,-500.0,0.00015973,2]
[400436224,1767551443625,-500.80153356,0.00015973,2]
[400436225,1767551443634,-500.0,0.00015973,2]
[400436226,1767551443644,-500.0,0.00015973,2]
[400436227,1767551443653,-500.0,0.00015973,2]
[400436228,1767551443662,-500.0,0.00015973,2]
[400436229,1767551443671,-500.0,0.00015973,2]
[400436230,1767551443681,-500.0,0.00015973,2]
[400436231,1767551443691,-500.0,0.00015973,2]
[400436232,1767551443700,-557.14178352,0.00015973,2]
[400436233,1767551443710,-500.0,0.00015973,2]
[400436234,1767551443719,-162.39049405,0.00015973,2]
[400436235,1767551443729,-500.0,0.00015973,2]
[400436236,1767551443739,-500.33097651,0.00015973,2]
[400436237,1767551443748,-519.94704597,0.00015973,2]
[400436238,1767551443758,-501.32441659,0.00015973,2]
[400436239,1767551443767,-500.0,0.00015973,2]
[400436240,1767551443777,-500.0,0.00015973,2]
[400436241,1767551443786,-500.0,0.00015973,2]
[400436242,1767551443796,-335.30855068,0.00015973,2]
[400436243,1767551443806,-500.0,0.00015973,2]
[400436244,1767551443815,-427.65194977,0.00015973,2]
[400436245,1767551443825,-178.11764647,0.00015973,2]
[400436246,1767551443834,-500.0,0.00015973,2]
[400436247,1767551443843,-500.0,0.00015973,2]
[400436248,1767551443853,-160.51486392,0.00015973,2]
[400436249,1767551443862,-161.9533546,0.00015973,2]
[400436250,1767551443871,-500.0,0.00015973,2]
[400436251,1767551443881,-500.0,0.00015973,2]
[400436252,1767551443891,-524.10882294,0.00015973,2]
[400436253,1767551443900,-500.0,0.00015973,2]
[400436254,1767551443910,-500.0,0.00015973,2]
[400436255,1767551443919,-500.0,0.00015973,2]
[400436256,1767551443928,-500.0,0.00015973,2]
[400436257,1767551443938,-164.04019857,0.00015973,2]
[400436258,1767551443948,-283.16984364,0.00015973,2]
[400436259,1767551443957,-375.1471696,0.00015973,2]
[400436260,1767551443967,-500.0,0.00015973,2]
[400436261,1767551443976,-571.49254252,0.00015973,2]
[400436262,1767551443987,-500.0,0.00015973,2]
[400436263,1767551443999,-500.0,0.00015973,2]
[400436264,1767551444008,-500.0,0.00015973,2]
[400436265,1767551444018,-500.0,0.00015973,2]
[400436266,1767551444028,-510.53211563,0.00015973,2]
[400436267,1767551444037,-640.75623125,0.00015973,2]
[400436268,1767551444047,-156.8618217,0.00015973,2]
[400436269,1767551444058,-500.0,0.00015973,2]
[400436270,1767551444068,-469.53903087,0.00015973,2]
[400436271,1767551444078,-165.17063787,0.00015973,2]
[400436272,1767551444087,-500.0,0.00015973,2]
[400436273,1767551444097,-510.20909915,0.00015973,2]
[400436274,1767551444107,-500.0,0.00015973,2]
[400436275,1767551444117,-500.0,0.00015973,2]
[400436276,1767551444126,-500.0,0.00015973,2]
[400436277,1767551444135,-165.90197313,0.00015973,2]
[400436278,1767551444144,-531.13668623,0.00015973,2]
[400436279,1767551444154,-507.25971668,0.00015973,2]
[400436280,1767551444164,-500.0,0.00015973,2]
[400436281,1767551444173,-207.91178514,0.00015973,2]
[400436282,1767551444182,-307.90616276,0.00015973,2]
[400436283,1767551444191,-167.27117192,0.00015973,2]
[400436284,1767551444200,-500.0,0.00015973,2]
[400436285,1767551444210,-500.0,0.00015973,2]
[400436286,1767551444219,-220.73919523,0.00015973,2]
[400436287,1767551444228,-500.0,0.00015973,2]
[400436288,1767551444237,-168.94981605,0.00015973,2]
[400436289,1767551444247,-484.01781712,0.00015973,2]
[400436290,1767551444256,-500.0,0.00015973,2]
[400436291,1767551444265,-500.0,0.00015973,2]
[400436292,1767551444274,-1203.96202527,0.0001598,2]
[400436293,1767551444284,-2695.94183627,0.0001598,2]
[400436294,1767551444294,-500.0,0.00015999,2]
[400436295,1767551444303,-500.0,0.00015999,2]
[400436296,1767551444313,-800047.66041003,0.00016,4]
[400436297,1767551444322,-18026.01832081,0.00016,2]
[400436298,1767551444331,-153.185561,0.00016,2]
[400436299,1767551444340,-151.0,0.00016,2]
[400436300,1767551444350,-157.603326,0.00016,2]
[400436301,1767551444359,-714.138811,0.00016,2]
[400436302,1767551444368,-714.138811,0.00016,2]
[400436303,1767551444377,-714.138811,0.00016,2]
[400436304,1767551444387,-714.138811,0.00016,2]
[400436305,1767551444396,-706.358544,0.00016,2]
[400436306,1767551444405,-706.358544,0.00016,2]
[400436307,1767551444415,-706.358544,0.00016,2]
[400436308,1767551444424,-706.358544,0.00016,2]
[400436309,1767551444434,-151.0,0.00016,2]
[400436310,1767551444443,-151.0,0.00016,2]
[400436311,1767551444453,-151.0,0.00016,2]
[400436312,1767551444462,-308.802507,0.00016,2]
[400436313,1767551444471,-308.802507,0.00016,2]
[400436314,1767551444480,-308.802507,0.00016,2]
[400436315,1767551444489,-308.802507,0.00016,2]
[400436316,1767551444499,-200.0,0.00016029,2]
[400436317,1767551444508,-166.66,0.00016054,2]
[400436318,1767551444517,-2092.0,0.00016183,2]
[400436319,1767551444527,-269.65,0.00016195,2]
[400436320,1767551444536,-230.88,0.00016223,2]
[400436321,1767551444546,-510.0,0.00016238,2]
[400436322,1767551444556,-205.95297079,0.00016254,2]
[400436323,1767551444565,-1203.96202527,0.000163,2]
[400436324,1767551444575,-2695.94183627,0.000163,2]
[400436325,1767551444585,-178.97,0.00016334,2]
[400436326,1767551444595,-1000.0,0.00016422,2]
[400436327,1767551444603,-500.0,0.00016438,2]
[400436328,1767551444612,-500.0,0.00016438,2]
[400436329,1767551444622,-500.0,0.00016438,2]
[400436330,1767551444631,-500.0,0.00016438,2]
[400436331,1767551444640,-500.0,0.00016438,2]
[400436332,1767551444650,-500.0,0.00016438,2]
[400436333,1767551444660,-500.0,0.00016438,2]
[400436334,1767551444670,-500.0,0.00016438,2]
[400436335,1767551444679,-500.0,0.00016438,2]
[400436336,1767551444688,-500.0,0.00016438,2]
[400436337,1767551444698,-500.0,0.00016438,2]
[400436338,1767551444707,-500.0,0.00016438,2]
[400436339,1767551444716,-500.0,0.00016438,2]
[400436340,1767551444726,-500.0,0.00016438,2]
[400436341,1767551444737,-500.0,0.00016438,2]
[400436342,1767551444747,-500.0,0.00016438,2]
[400436343,1767551444756,-500.0,0.00016438,2]
[400436344,1767551444766,-500.0,0.00016438,2]
[400436345,1767551444775,-500.0,0.00016438,2]
[400436346,1767551444786,-500.0,0.00016438,2]
[400436347,1767551444796,-500.0,0.00016438,2]
[400436348,1767551444805,-500.0,0.00016438,2]
[400436349,1767551444815,-500.0,0.00016438,2]
[400436350,1767551444824,-500.0,0.00016438,2]
[400436351,1767551444834,-500.0,0.00016438,2]
[400436352,1767551444843,-500.0,0.00016438,2]
[400436353,1767551444853,-500.0,0.00016438,2]
[400436354,1767551444863,-500.0,0.00016438,2]
[400436355,1767551444873,-500.0,0.00016438,2]
[400436356,1767551444883,-500.0,0.00016438,2]
[400436357,1767551444893,-500.0,0.00016438,2]
[400436358,1767551444902,-500.0,0.00016438,2]
[400436359,1767551444912,-500.0,0.00016438,2]
[400436360,1767551444922,-500.0,0.00016438,2]
[400436361,1767551444931,-500.0,0.00016438,2]
[400436362,1767551444941,-500.0,0.00016438,2]
[400436363,1767551444951,-500.0,0.00016438,2]
[400436364,1767551444961,-500.0,0.00016438,2]
[400436365,1767551444970,-500.0,0.00016438,2]
[400436366,1767551444980,-500.0,0.00016438,2]
[400436367,1767551444993,-645.5849851,0.00016438,2]
[400436368,1767551445002,-500.0,0.00016438,2]
[400436369,1767551445012,-500.0,0.00016438,2]
[400436370,1767551445021,-500.0,0.00016438,2]
[400436371,1767551445032,-500.0,0.00016438,2]
[400436372,1767551445041,-500.0,0.00016438,2]
[400436373,1767551445051,-500.0,0.00016438,2]
[400436374,1767551445062,-500.0,0.00016438,2]
[400436375,1767551445072,-500.0,0.00016438,2]
[400436376,1767551445081,-500.0,0.00016438,2]
[400436377,1767551445091,-500.0,0.00016438,2]
[400436378,1767551445100,-500.0,0.00016438,2]
[400436379,1767551445110,-500.0,0.00016438,2]
[400436380,1767551445120,-500.0,0.00016438,2]
[400436381,1767551445130,-500.0,0.00016438,2]
[400436382,1767551445139,-500.0,0.00016438,2]
[400436383,1767551445148,-500.0,0.00016438,2]
[400436384,1767551445158,-500.0,0.00016438,2]
[400436385,1767551445167,-500.0,0.00016438,2]
[400436386,1767551445176,-500.0,0.00016438,2]
[400436387,1767551445186,-500.0,0.00016438,2]
[400436388,1767551445196,-500.0,0.00016438,2]
[400436389,1767551445205,-500.0,0.00016438,2]
[400436390,1767551445215,-500.0,0.00016438,2]
[400436391,1767551445224,-500.0,0.00016438,2]
[400436392,1767551445234,-500.0,0.00016438,2]
[400436393,1767551445249,-500.0,0.00016438,2]
[400436394,1767551445259,-500.0,0.00016438,2]
[400436395,1767551445268,-164.55849851,0.00016438,2]
[400436396,1767551445278,-500.0,0.00016438,2]
[400436397,1767551445287,-500.0,0.00016438,2]
[400436398,1767551445297,-500.0,0.00016438,2]
[400436399,1767551445307,-500.0,0.00016438,2]
[400436400,1767551445318,-500.0,0.00016438,2]
[400436401,1767551445327,-500.0,0.00016438,2]
[400436402,1767551445337,-500.0,0.00016438,2]
[400436403,1767551445347,-500.0,0.00016438,2]
[400436404,1767551445356,-505.21172117,0.00016438,2]
[400436405,1767551445366,-500.0,0.00016438,2]
[400436406,1767551445375,-500.0,0.00016438,2]
[400436407,1767551445384,-500.0,0.00016438,2]
[400436408,1767551445393,-500.0,0.00016438,2]
[400436409,1767551445403,-6105.75,0.00016438,2]
[400436410,1767551445412,-156.877284,0.00016438,2]
[400436411,1767551445422,-800.0,0.00016438,2]
[400436412,1767551445431,-268.359197,0.00016438,2]
[400436413,1767551445440,-268.359197,0.00016438,2]
[400436414,1767551445450,-268.359197,0.00016438,2]
[400436415,1767551445459,-268.359197,0.00016438,2]
[400436416,1767551445468,-164.78,0.0001644,2]
[400436417,1767551445477,-269.68,0.00016468,2]
[400436418,1767551445487,-154.533793,0.00016468,2]
[400436419,1767551445496,-714.138811,0.00016468,2]
[400436420,1767551445505,-714.138811,0.00016468,2]
[400436421,1767551445515,-714.138811,0.00016468,2]
[400436422,1767551445524,-714.138811,0.00016468,2]
[400436423,1767551445534,-1500.0,0.00016468,2]
[400436424,1767551445544,-1500.0,0.00016468,2]
[400436425,1767551445553,-1500.0,0.00016468,2]
[400436426,1767551445563,-1500.0,0.00016468,2]
[400436427,1767551445572,-504.61831614,0.00016468,2]
[400436428,1767551445582,-1500.0,0.00016468,2]
[400436429,1767551445591,-227.80986021,0.00016468,2]
[400436430,1767551445601,-1500.0,0.00016468,2]
[400436431,1767551445611,-664.61773369,0.00016468,2]
[400436432,1767551445620,-910.90768099,0.00016468,2]
[400436433,1767551445629,-1500.0,0.00016468,2]
[400436434,1767551445638,-1500.0,0.00016468,2]
[400436435,1767551445648,-1500.0,0.00016468,2]
[400436436,1767551445657,-1500.0,0.00016468,2]
[400436437,1767551445666,-505.54888776,0.00016468,2]
[400436438,1767551445676,-1500.0,0.00016468,2]
[400436439,1767551445685,-1500.0,0.00016468,2]
[400436440,1767551445694,-1500.0,0.00016468,2]
[400436441,1767551445704,-401.20450479,0.00016468,2]
[400436442,1767551445713,-1500.0,0.00016468,2]
[400436444,1767551445723,-1500.0,0.00016468,2]
[400436445,1767551445732,-1000.0,0.00016521,2]
[400436446,1767551445742,-1000.0,0.00016521,2]
[400436447,1767551445751,-1000.0,0.00016521,2]
[400436448,1767551445761,-1000.0,0.00016521,2]
[400436450,1767551445775,-1000.0,0.00016521,2]
[400436452,1767551445783,-1003.67303953,0.00016521,2]
[400436453,1767551445792,-609.46856999,0.00016521,2]
[400436454,1767551445802,-1000.0,0.00016521,2]
[400436455,1767551445811,-500.57294627,0.00016521,2]
[400436456,1767551445820,-1000.0,0.00016521,2]
[400436457,1767551445830,-1000.0,0.00016521,2]
[400436458,1767551445840,-1000.90262975,0.00016521,2]
[400436459,1767551445849,-1000.0,0.00016521,2]
[400436460,1767551445859,-1000.0,0.00016521,2]
[400436461,1767551445869,-285.96433615,0.00016521,2]
[400436462,1767551445879,-1000.0,0.00016521,2]
[400436463,1767551445889,-1000.0,0.00016521,2]
[400436464,1767551445898,-1000.0,0.00016521,2]
[400436465,1767551445911,-514.29610495,0.00016521,2]
[400436466,1767551445920,-1000.0,0.00016521,2]
[400436467,1767551445930,-1000.0,0.00016521,2]
[400436468,1767551445939,-1000.0,0.00016521,2]
[400436469,1767551445949,-1000.0,0.00016521,2]
[400436470,1767551445958,-577.0015359,0.00016521,2]
[400436471,1767551445969,-194.13251181,0.00016521,2]
[400436472,1767551446140,-1000.0,0.00016521,2]
[400436473,1767551446150,-1000.0,0.00016521,2]
[400436474,1767551446160,-167.71055694,0.00016521,2]
[400436475,1767551446170,-1000.0,0.00016521,2]
[400436476,1767551446179,-1000.0,0.00016521,2]
[400436477,1767551446189,-545.35995935,0.00016521,2]
[400436478,1767551446199,-1000.0,0.00016521,2]
[400436479,1767551446208,-1000.0,0.00016521,2]
[400436480,1767551446218,-1000.0,0.00016521,2]
[400436481,1767551446228,-1069.91608913,0.00016521,2]
[400436482,1767551446238,-1000.0,0.00016521,2]
[400436483,1767551446247,-1000.0,0.00016521,2]
[400436484,1767551446258,-1000.0,0.00016521,2]
[400436485,1767551446268,-1000.0,0.00016521,2]
[400436486,1767551446278,-500.33330588,0.00016521,2]
[400436487,1767551446289,-1000.0,0.00016521,2]
[400436488,1767551446300,-554.1071845,0.00016521,2]
[400436489,1767551446310,-1000.0,0.00016521,2]
[400436490,1767551446320,-1000.0,0.00016521,2]
[400436491,1767551446330,-1000.0,0.00016521,2]
[400436492,1767551446340,-1000.0,0.00016521,2]
[400436494,1767551446350,-1000.0,0.00016521,2]
[400436495,1767551446359,-397.01027431,0.00016521,2]
[400436496,1767551446368,-1000.0,0.00016521,2]
[400436497,1767551446378,-182.33791017,0.00016521,2]
[400436498,1767551446387,-1000.0,0.00016521,2]
[400436499,1767551446398,-706.358544,0.00016521,2]
[400436500,1767551446408,-706.358544,0.00016521,2]
[400436501,1767551446417,-706.358544,0.00016521,2]
[400436502,1767551446426,-706.358544,0.00016521,2]
[400436503,1767551446435,-151.0,0.00016521,2]
[400436504,1767551446446,-151.0,0.00016521,2]
[400436505,1767551446466,-287.781554,0.00016521,2]
[400436506,1767551446475,-308.802507,0.00016521,2]
[400436507,1767551446484,-308.802507,0.00016521,2]
[400436508,1767551446494,-308.802507,0.00016521,2]
[400436509,1767551446503,-308.802507,0.00016521,2]
[400436510,1767551446512,-268.359197,0.00016521,2]
[400436511,1767551446521,-268.359197,0.00016521,2]
[400436512,1767551446531,-268.359197,0.00016521,2]
[400436513,1767551446540,-268.359197,0.00016521,2]
[400436514,1767551446551,-420.0,0.00016545,2]
[400436515,1767551446560,-420.0,0.00016545,2]
[400436516,1767551446570,-1203.96202527,0.0001662,2]
[400436517,1767551446579,-2695.94183627,0.0001662,2]
[400436518,1767551446588,-195.0,0.00016629,2]
[400436519,1767551446598,-1680.0,0.00016629,2]
[400436520,1767551446607,-195.0,0.00016631,2]
[400436521,1767551446616,-250.0,0.00016631,2]
[400436522,1767551446625,-195.0,0.00016632,2]
[400436523,1767551446636,-300.0,0.00016632,2]
[400436524,1767551446646,-2500.0,0.00016632,2]
[400436525,1767551446655,-600.0,0.00016632,2]
[400436526,1767551446664,-600.0,0.00016632,2]
[400436527,1767551446674,-600.0,0.00016632,2]
[400436528,1767551446683,-600.0,0.00016632,2]
[400436529,1767551446692,-600.0,0.00016632,2]
[400436530,1767551446702,-300.0,0.00016632,2]
[400436531,1767551446711,-195.0,0.00016632,2]
[400436532,1767551446721,-250.0,0.00016632,2]
[400436533,1767551446730,-2084.35,0.0001665,2]
[400436534,1767551446739,-205.95297079,0.00016666,2]
[400436535,1767551446749,-166.66,0.00016691,2]
[400436536,1767551446758,-1600.0,0.00016847,2]
[400436537,1767551446767,-150.42202987,0.00016847,2]
[400436538,1767551446777,-4162.57,0.00016922,2]
[400436539,1767551446787,-680.4,0.00016922,2]
[400436540,1767551446797,-572.12,0.00016922,2]
[400436541,1767551446807,-9999.99,0.00016922,2]
[400436542,1767551446816,-150.99,0.00016922,2]
[400436543,1767551446825,-150.99,0.00016922,2]
[400436544,1767551446835,-2115.25,0.00016922,2]
[400436545,1767551446844,-29378.22,0.00016922,2]
[400436546,1767551446853,-3203.34,0.00016922,2]
[400436547,1767551446863,-499.99,0.00016922,2]
[400436548,1767551446873,-999.99,0.00016922,2]
[400436549,1767551446883,-1203.96202527,0.0001694,2]
[400436550,1767551446892,-2695.94183627,0.0001694,2]
[400436551,1767551446901,-714.138811,0.0001698,2]
[400436552,1767551446911,-714.138811,0.0001698,2]
[400436553,1767551446920,-714.138811,0.0001698,2]
[400436554,1767551446930,-714.138811,0.0001698,2]
[400436555,1767551446940,-300.0,0.00016985,2]
[400436556,1767551446949,-714.138811,0.00016986,2]
[400436557,1767551446960,-714.138811,0.00016986,2]
[400436558,1767551446969,-714.138811,0.00016986,2]
[400436559,1767551446978,-714.138811,0.00016986,2]
[400436560,1767551446991,-706.358544,0.00016986,2]
[400436561,1767551447000,-706.358544,0.00016986,2]
[400436562,1767551447010,-706.358544,0.00016986,2]
[400436563,1767551447020,-706.358544,0.00016986,2]
[400436564,1767551447031,-706.358544,0.00016986,2]
[400436565,1767551447040,-706.358544,0.00016986,2]
[400436566,1767551447050,-706.358544,0.00016986,2]
[400436567,1767551447061,-706.358544,0.00016986,2]
[400436568,1767551447071,-151.0,0.00016986,2]
[400436569,1767551447080,-151.0,0.00016986,2]
[400436570,1767551447090,-151.0,0.00016986,2]
[400436571,1767551447099,-151.0,0.00016986,2]
[400436572,1767551447108,-308.802507,0.00016986,2]
[400436573,1767551447118,-308.802507,0.00016986,2]
[400436574,1767551447127,-308.802507,0.00016986,2]
[400436575,1767551447136,-308.802507,0.00016986,2]
[400436576,1767551447145,-268.359197,0.00016986,2]
[400436577,1767551447155,-268.359197,0.00016986,2]
[400436578,1767551447164,-268.359197,0.00016986,2]
[400436579,1767551447174,-268.359197,0.00016986,2]
[400436580,1767551447183,-52258.32027344,0.00016986,2]
[400436581,1767551447203,-3248.79216139,0.00016986,2]
[400436582,1767551447280,-151.0,0.0001532,2]
[400436583,1767551447289,-151.0,0.00015921,2]
[400436584,1767551447300,-151.0,0.00015921,2]
[400436585,1767551447309,-178.49851381,0.00016986,2]
[400436586,1767551447321,-9898.5,0.00016986,2]
[400436587,1767551447332,-16245.95797975,0.00016986,2]
[400436588,1767551447351,-151.0,0.00015933,2]
[400436589,1767551447361,-151997.89107161,0.00016986,2]
[400436590,1767551447370,-3465.0,0.00016987,2]
[400436591,1767551447379,-1328.0,0.00016987,2]
[400436592,1767551447388,-205.0,0.00016993,2]
[400436593,1767551447398,-250.0,0.00017,2]
[400436594,1767551447407,-205.0,0.00017005,2]
[400436595,1767551447417,-2000.0,0.00017016,2]
[400436596,1767551447426,-2000.0,0.00017016,2]
[400436597,1767551447436,-1008.49267712,0.00017016,2]
[400436598,1767551447446,-414.41472241,0.00017016,2]
[400436599,1767551447455,-2000.0,0.00017016,2]
[400436600,1767551447464,-1008.40118338,0.00017016,2]
[400436601,1767551447485,-1676.13684725,0.00017016,2]
[400436602,1767551447495,-516.76468605,0.00017016,2]
[400436603,1767551447504,-1509.74714228,0.00017016,2]
[400436604,1767551447514,-2000.0,0.00017016,2]
[400436605,1767551447523,-2000.0,0.00017016,2]
[400436606,1767551447533,-1048.21180041,0.00017016,2]
[400436607,1767551447542,-2000.0,0.00017016,2]
[400436608,1767551447553,-504.50134142,0.00017016,2]
[400436609,1767551447562,-2000.0,0.00017016,2]
[400436610,1767551447572,-205.0,0.00017036,2]
[400436611,1767551447581,-278.12207661,0.00017068,2]
[400436612,1767551447591,-1500.0,0.00017068,2]
[400436613,1767551447600,-1501.32749774,0.00017068,2]
[400436614,1767551447610,-1500.0,0.00017068,2]
[400436615,1767551447619,-1500.0,0.00017068,2]
[400436616,1767551447628,-1500.0,0.00017068,2]
[400436617,1767551447638,-1500.0,0.00017068,2]
[400436618,1767551447647,-1500.0,0.00017068,2]
[400436619,1767551447656,-1087.56010454,0.00017068,2]
[400436620,1767551447667,-1500.0,0.00017068,2]
[400436621,1767551447676,-1573.26613188,0.00017068,2]
[400436622,1767551447686,-614.98987276,0.00017068,2]
[400436623,1767551447695,-1500.0,0.00017068,2]
[400436624,1767551447705,-1000.0,0.00017068,2]
[400436625,1767551447714,-1500.0,0.00017068,2]
[400436626,1767551447723,-1408.25930996,0.00017068,2]
[400436627,1767551447732,-1003.77025237,0.00017068,2]
[400436628,1767551447742,-602.13152895,0.00017068,2]
[400436629,1767551447751,-1505.70209618,0.00017068,2]
[400436630,1767551447760,-1500.0,0.00017068,2]
[400436632,1767551447769,-1500.0,0.00017068,2]
[400436634,1767551447778,-1004.15287771,0.00017068,2]
[400436636,1767551447787,-1500.0,0.00017068,2]
[400436637,1767551447797,-1500.0,0.00017068,2]
[400436638,1767551447805,-1500.0,0.00017068,2]
[400436639,1767551447815,-1500.0,0.00017068,2]
[400436640,1767551447824,-1500.0,0.00017068,2]
[400436641,1767551447834,-1500.0,0.00017068,2]
[400436642,1767551447844,-1006.13384447,0.00017068,2]
[400436643,1767551447853,-1500.0,0.00017068,2]
[400436644,1767551447862,-1500.0,0.00017068,2]
[400436645,1767551447872,-1506.44724858,0.00017068,2]
[400436646,1767551447881,-1500.0,0.00017068,2]
[400436647,1767551447890,-1500.0,0.00017068,2]
[400436648,1767551447899,-1500.0,0.00017068,2]
[400436649,1767551447908,-1500.0,0.00017068,2]
[400436650,1767551447917,-205.95297079,0.00017077,2]
[400436651,1767551447926,-978.0,0.000171,2]
[400436652,1767551447935,-306.0,0.000171,2]
[400436653,1767551447944,-201.0,0.000171,2]
[400436654,1767551447954,-178.97,0.00017151,2]
[400436655,1767551447963,-205.0,0.00017193,2]
[400436656,1767551447972,-3161.0,0.00017194,2]
[400436657,1767551447982,-205.0,0.00017247,2]